bitfinex/quotes_SOLUSD_20230905
["timestamp","ask_amount","ask_price","bid_price","bid_amount"]
[1693924095324,20.9783663,19.941,19.927,190.23531588]
[1693924095631,188.092,19.937,19.927,190.23531588]
[1693924096018,55.0,19.936,19.927,190.23531588]
[1693924096317,188.126,19.934,19.927,190.23531588]
[1693924096721,188.144,19.932,19.927,190.23531588]
[1693924096920,33.115,19.93,19.927,190.23531588]
[1693924097110,33.115,19.93,19.917,190.23531588]
[1693924097307,188.2,19.926,19.917,190.23531588]
[1693924097610,88.328,19.926,19.917,190.23531588]
[1693924097814,82.47212471,19.939,19.917,223.37231588]
[1693924098023,55.186,19.933,19.917,223.37231588]
[1693924098225,132.959,19.931,19.927,190.23531588]
[1693924098617,33.114,19.931,19.927,190.23531588]
[1693924099026,55.0,19.93,19.927,190.23531588]
[1693924099331,88.311,19.929,19.917,190.23531588]
[1693924099826,75.0,19.928,19.917,190.23531588]
[1693924100026,33.124,19.925,19.917,190.23531588]
[1693924100631,55.0,19.924,19.917,190.23531588]
[1693924100932,88.343,19.922,19.917,190.23531588]
[1693924101110,7.83,19.922,19.917,190.23531588]
[1693924101310,55.0,19.921,19.917,190.23531588]
[1693924101628,33.132,19.92,19.917,190.23531588]
[1693924102327,33.135,19.918,19.917,190.23531588]
[1693924102522,7.832,19.918,19.917,190.23531588]
[1693924102728,62.832,19.918,19.917,190.23531588]
[1693924102932,62.832,19.918,19.907,190.23531588]
[1693924103117,7.833,19.914,19.907,190.23531588]
[1693924104418,7.831,19.919,19.916,190.23531588]
[1693924104621,55.204,19.926,19.916,190.23531588]
[1693924104821,205.07027187,19.953,19.916,190.23531588]
[1693924104822,33.13,19.921,19.916,190.23531588]
[1693924105133,33.13,19.921,19.909,7.835]
[1693924105334,33.13,19.921,19.917,190.23531588]
[1693924105741,55.0,19.92,19.917,190.23531588]
[1693924106027,33.133,19.919,19.907,190.23531588]
[1693924106241,33.14,19.915,19.907,190.23531588]
[1693924106624,351.83146175,19.955,19.907,190.23531588]
[1693924106824,51.92839224,19.986,19.908,1.61713431]
[1693924106825,79.99398389,19.929,19.908,1.61713431]
[1693924107015,80.51,19.923,19.914,190.23531588]
[1693924107219,7.83,19.923,19.914,190.23531588]
[1693924107526,162.926,19.923,19.892,50.09769154]
[1693924107728,162.926,19.923,19.87,116.59617008]
[1693924107729,25.4,19.91,19.897,190.23531588]
[1693924107919,188.382,19.907,19.887,165.24133199]
[1693924108117,1.45107109,19.906,19.887,165.24133199]
[1693924108318,188.438,19.901,19.887,165.24133199]
[1693924108628,188.438,19.901,19.897,165.24133199]
[1693924108828,55.0,19.9,19.897,165.24133199]
[1693924109024,188.473,19.897,19.887,165.24133199]
[1693924109232,55.0,19.896,19.877,173.08933199]
[1693924109429,88.484,19.891,19.887,165.24133199]
[1693924109641,33.181,19.891,19.887,165.24133199]
[1693924110434,133.226,19.891,19.877,165.24133199]
[1693924110640,55.0,19.89,19.877,165.24133199]
[1693924110833,88.503,19.887,19.877,162.74133199]
[1693924111442,7.844,19.887,19.886,162.74133199]
[1693924112029,25.338,19.891,19.886,162.74133199]
[1693924112228,7.842,19.891,19.886,162.74133199]
[1693924112541,33.18,19.891,19.886,162.74133199]
[1693924113027,33.18,19.891,19.887,162.74133199]
[1693924113927,75.0,19.89,19.877,162.74133199]
[1693924114129,188.572,19.887,19.877,162.74133199]
[1693924114342,55.0,19.886,19.877,162.74133199]
[1693924114528,88.514,19.884,19.877,162.74133199]
[1693924115228,55.0,19.883,19.877,162.74133199]
[1693924115424,33.195,19.882,19.877,162.74133199]
[1693924116646,7.846,19.882,19.877,162.74133199]
[1693924117939,7.844,19.887,19.885,162.74133199]
[1693924118234,80.641,19.891,19.885,162.74133199]
[1693924118434,55.308,19.889,19.885,162.74133199]
[1693924118627,33.182,19.89,19.885,162.74133199]
[1693924119226,133.232,19.89,19.885,162.74133199]
[1693924119624,7.843,19.89,19.885,162.74133199]
[1693924120633,7.843,19.89,19.873,100.133]
[1693924120634,25.331,19.897,19.887,162.74133199]
[1693924120833,25.331,19.897,19.896,162.74133199]
[1693924120834,55.285,19.897,19.896,162.74133199]
[1693924121028,33.169,19.898,19.887,162.74133199]
[1693924121234,33.169,19.898,19.887,170.58533199]
[1693924121636,33.169,19.898,19.887,162.74133199]
[1693924122229,33.169,19.898,19.887,170.58533199]
[1693924122644,7.84,19.898,19.887,162.74133199]
[1693924122832,7.84,19.898,19.886,7.844]
[1693924123032,7.84,19.898,19.885,99.7585]
[1693924123237,7.84,19.898,19.887,170.58533199]
[1693924123629,7.841,19.894,19.887,170.58533199]
[1693924123849,7.841,19.894,19.887,7.844]
[1693924124147,7.338412,19.894,19.887,7.844]
[1693924124342,7.338412,19.894,19.887,170.58533199]
[1693924124547,7.841,19.895,19.887,170.58533199]
[1693924125045,7.84,19.896,19.887,170.58533199]
[1693924125346,7.84,19.896,19.895,162.74133199]
[1693924125549,7.84,19.896,19.885,91.9145]
[1693924125550,33.171,19.896,19.888,162.74133199]
[1693924126753,55.0,19.895,19.888,162.74133199]
[1693924126957,7.841,19.895,19.888,162.74133199]
[1693924130131,7.841,19.895,19.887,7.844]
[1693924130343,7.841,19.895,19.885,91.9145]
[1693924130549,7.841,19.895,19.888,162.74133199]
[1693924137948,7.841,19.895,19.894,162.74133199]
[1693924138356,7.838,19.902,19.898,162.74133199]
[1693924138545,25.323,19.903,19.898,162.74133199]
[1693924138546,7.838,19.903,19.898,162.74133199]
[1693924139443,99.961,19.908,19.898,162.74133199]
[1693924139643,55.262,19.914,19.898,162.74133199]
[1693924139846,25.31,19.913,19.908,162.74133199]
[1693924140053,7.834,19.912,19.908,162.74133199]
[1693924141864,7.834,19.913,19.908,162.74133199]
[1693924142162,7.833,19.914,19.908,162.74133199]
[1693924142554,7.833,19.914,19.904,7.837]
[1693924143048,7.833,19.914,19.908,162.74133199]
[1693924143251,80.536,19.917,19.904,7.837]
[1693924143252,7.833,19.915,19.904,7.837]
[1693924143450,7.833,19.914,19.904,7.837]
[1693924143660,7.833,19.915,19.908,162.74133199]
[1693924143958,7.831,19.919,19.918,162.74133199]
[1693924144859,55.213,19.923,19.918,162.74133199]
[1693924145052,7.829,19.924,19.918,136.59083199]
[1693924145245,7.829,19.924,19.918,95.38890429]
[1693924146769,55.0,19.923,19.918,95.38890429]
[1693924146954,33.129,19.922,19.918,95.38890429]
[1693924148665,55.0,19.923,19.918,95.38890429]
[1693924148865,62.83,19.923,19.918,95.38890429]
[1693924156872,40.63115577,19.927,19.918,95.38890429]
[1693924156873,61.01017554,19.93,19.918,128.52290429]
[1693924157060,7.828,19.929,19.918,128.52290429]
[1693924157261,7.828,19.929,19.918,95.38890429]
[1693924157859,7.828,19.929,19.918,103.22090429]
[1693924158464,7.828,19.929,19.928,95.38890429]
[1693924159066,7.826,19.932,19.928,95.38890429]
[1693924160371,25.283,19.934,19.928,95.38890429]
[1693924160577,7.826,19.933,19.928,95.38890429]
[1693924164783,7.827,19.931,19.928,95.38890429]
[1693924166283,7.826,19.932,19.928,95.38890429]
[1693924169374,107.665,19.932,19.928,95.38890429]
[1693924169576,7.826,19.932,19.928,95.38890429]
[1693924169977,7.826,19.932,19.922,7.83]
[1693924170178,7.826,19.932,19.928,95.38890429]
[1693924171089,7.826,19.932,19.928,94.38890429]
[1693924174489,7.826,19.933,19.928,94.38890429]
[1693924174785,7.826,19.934,19.928,94.38890429]
[1693924175081,7.825,19.934,19.928,94.38890429]
[1693924176083,7.825,19.935,19.928,94.38890429]
[1693924176675,33.107,19.935,19.928,94.38890429]
[1693924177486,33.111,19.933,19.928,94.38890429]
[1693924177698,7.826,19.933,19.928,94.38890429]
[1693924178281,33.11,19.933,19.928,94.38890429]
[1693924178591,88.304,19.931,19.928,94.38890429]
[1693924178993,7.827,19.931,19.928,94.38890429]
[1693924179484,7.826,19.932,19.928,94.38890429]
[1693924179692,7.826,19.933,19.928,94.38890429]
[1693924182898,7.826,19.933,19.922,7.83]
[1693924183295,7.826,19.933,19.928,94.38890429]
[1693924184182,7.825,19.936,19.928,94.38890429]
[1693924184382,65.52008488,19.938,19.928,94.38890429]
[1693924184588,62.824,19.937,19.928,94.38890429]
[1693924185706,7.824,19.938,19.928,102.21690429]
[1693924185897,20.0,19.94,19.928,102.21690429]
[1693924186198,33.098,19.94,19.928,102.21690429]
[1693924186583,33.098,19.94,19.929,97.9897]
[1693924188596,20.0,19.941,19.929,97.9897]
[1693924188794,55.0,19.94,19.929,97.9897]
[1693924189192,55.0,19.941,19.929,97.9897]
[1693924189512,20.0,19.94,19.929,97.9897]
[1693924191289,20.0,19.942,19.929,97.9897]
[1693924193211,55.0,19.941,19.929,97.9897]
[1693924193394,20.0,19.94,19.929,97.9897]
[1693924193703,40.03214464,19.943,19.928,94.38890429]
[1693924193704,40.03214464,19.943,19.938,94.38890429]
[1693924193907,84.39522231,19.95,19.938,94.38890429]
[1693924193908,1.17091175,19.949,19.938,94.38890429]
[1693924194213,55.0,19.949,19.938,94.38890429]
[1693924195101,53.79522231,19.955,19.938,94.38890429]
[1693924195309,20.0,19.954,19.938,94.38890429]
[1693924196008,20.0,19.954,19.938,102.21290429]
[1693924196402,0.90494591,19.953,19.948,94.38890429]
[1693924196710,14.86897589,19.955,19.948,94.38890429]
[1693924196914,353.1681679,19.989,19.948,94.38890429]
[1693924197217,127.30700483,19.991,19.949,1.61713431]
[1693924197218,48.17096967,19.969,19.949,1.61713431]
[1693924197518,98.08098148,19.969,19.949,1.61713431]
[1693924198397,153.0,19.98,19.958,94.38890429]
[1693924198713,153.0,19.98,19.959,1.61713431]
[1693924198714,102.208905,19.977,19.959,1.61713431]
[1693924198895,102.208905,19.977,19.958,94.38890429]
[1693924199098,98.08098148,19.979,19.959,0.59566355]
[1693924200410,192.46988548,19.979,19.968,94.38890429]
[1693924200609,98.08098148,19.979,19.968,94.38890429]
[1693924201110,98.08098148,19.979,19.958,94.38890429]
[1693924201310,98.08098148,19.979,19.968,94.38890429]
[1693924202098,98.08098148,19.979,19.958,94.38890429]
[1693924202298,98.08098148,19.979,19.968,94.38890429]
[1693924202501,98.08098148,19.979,19.959,1.61713431]
[1693924202717,98.08098148,19.979,19.968,94.38890429]
[1693924203224,120.67278946,19.98,19.968,94.38890429]
[1693924203417,20.0,19.979,19.968,94.38890429]
[1693924203714,55.0,19.978,19.968,94.38890429]
[1693924207808,20.0,19.979,19.968,94.38890429]
[1693924208018,54.29874684,19.98,19.968,94.38890429]
[1693924208213,116.58473657,19.99,19.968,94.38890429]
[1693924208403,20.0,19.986,19.968,94.38890429]
[1693924208814,50.83,19.98,19.968,94.38890429]
[1693924209014,20.0,19.979,19.968,94.38890429]
[1693924209514,55.0,19.978,19.968,94.38890429]
[1693924212825,55.0,19.978,19.969,94.38890429]
[1693924213618,55.0,19.978,19.962,90.5941]
[1693924214014,55.0,19.978,19.969,94.38890429]
[1693924216916,50.83,19.98,19.969,94.38890429]
[1693924217123,54.65531061,19.98,19.969,94.38890429]
[1693924217322,20.0,19.979,19.969,94.38890429]
[1693924218327,55.0,19.978,19.962,98.4081]
[1693924218514,55.0,19.978,19.959,102.20490429]
[1693924218715,50.83,19.97,19.959,94.38890429]
[1693924219027,45.22892786,19.969,19.959,12.06944154]
[1693924219225,189.43254816,19.967,19.959,12.06944154]
[1693924219422,88.158,19.964,19.959,12.06944154]
[1693924219826,33.062,19.962,19.959,12.06944154]
[1693924220317,55.90361205,19.961,19.949,12.06944154]
[1693924220526,187.898,19.958,19.949,12.06944154]
[1693924220724,55.0,19.957,19.949,12.06944154]
[1693924220924,7.817,19.955,19.949,12.06944154]
[1693924221120,55.0,19.954,19.949,12.06944154]
[1693924221326,7.818,19.953,19.949,12.06944154]
[1693924221523,55.0,19.952,19.949,12.06944154]
[1693924221832,7.819,19.951,19.949,12.06944154]
[1693924222128,88.082,19.95,19.949,12.06944154]
[1693924222331,88.082,19.95,19.939,12.06944154]
[1693924222628,20.0,19.949,19.939,12.06944154]
[1693924222845,188.006,19.946,19.939,12.06944154]
[1693924223124,88.237,19.946,19.939,12.06944154]
[1693924223332,7.822,19.944,19.939,12.06944154]
[1693924223812,55.0,19.943,19.939,12.06944154]
[1693924224013,99.24663906,19.949,19.939,12.06944154]
[1693924224225,7.82,19.949,19.948,12.06944154]
[1693924224729,129.08202397,19.958,19.948,12.06944154]
[1693924225035,7.819,19.952,19.948,12.06944154]
[1693924225214,7.817,19.955,19.948,12.06944154]
[1693924225420,24.10563906,19.957,19.948,12.06944154]
[1693924225725,7.818,19.953,19.948,12.06944154]
[1693924225929,7.818,19.953,19.941,7.823]
[1693924226233,7.818,19.953,19.949,12.06944154]
[1693924226834,55.0,19.952,19.949,12.06944154]
[1693924227020,33.08,19.951,19.949,12.06944154]
[1693924227220,55.0,19.95,19.949,12.06944154]
[1693924227531,62.819,19.95,19.949,12.06944154]
[1693924228334,89.20642302,19.958,19.949,12.06944154]
[1693924228628,7.816,19.957,19.949,12.06944154]
[1693924229619,15.35338345,19.963,19.959,12.06944154]
[1693924229821,23.16738345,19.963,19.959,12.06944154]
[1693924230823,24.10563906,19.962,19.959,12.06944154]
[1693924231030,33.064,19.961,19.959,12.06944154]
[1693924231727,55.0,19.96,19.959,12.06944154]
[1693924232029,62.815,19.96,19.959,12.06944154]
[1693924232734,86.92063906,19.96,19.959,12.06944154]
[1693924233621,186.61963906,19.96,19.949,12.06944154]
[1693924233823,25.48204655,19.959,19.949,12.06944154]
[1693924234025,33.072,19.956,19.949,12.06944154]
[1693924234229,7.817,19.956,19.955,12.06944154]
[1693924234436,62.817,19.956,19.955,12.06944154]
[1693924234646,55.0,19.956,19.955,12.06944154]
[1693924234825,39.2337011,19.964,19.955,12.06944154]
[1693924235138,7.815,19.962,19.959,12.06944154]
[1693924235436,7.814,19.963,19.959,12.06944154]
[1693924235831,96.07346615,19.969,19.959,12.06944154]
[1693924236026,7.813,19.967,19.959,12.06944154]
[1693924236233,99.641,19.972,19.959,12.06944154]
[1693924236234,7.811,19.971,19.969,12.06944154]
[1693924236443,7.811,19.971,19.961,7.815]
[1693924236634,33.047,19.971,19.969,12.06944154]
[1693924237143,40.01604009,19.973,19.969,12.06944154]
[1693924237334,33.044,19.973,19.969,12.06944154]
[1693924238645,0.94150262,19.972,19.969,12.06944154]
[1693924238847,7.811,19.971,19.969,12.06944154]
[1693924240226,55.072,19.974,19.969,12.06944154]
[1693924240440,8.6916095,19.973,19.969,12.06944154]
[1693924240741,7.81,19.973,19.963,7.814]
[1693924240935,7.81,19.973,19.969,12.06944154]
[1693924241740,55.98841605,19.972,19.959,12.06944154]
[1693924241941,33.051,19.969,19.959,12.06944154]
[1693924242238,33.051,19.969,19.968,12.06944154]
[1693924242439,88.051,19.969,19.968,12.06944154]
[1693924243333,62.812,19.969,19.968,12.06944154]
[1693924243538,7.812,19.969,19.968,12.06944154]
[1693924244332,25.234,19.973,19.959,67.18144154]
[1693924244529,1.61651248,19.971,19.96,7.815]
[1693924244746,33.048,19.97,19.969,12.06944154]
[1693924244931,88.048,19.97,19.969,12.06944154]
[1693924251447,62.811,19.97,19.969,12.06944154]
[1693924251636,7.811,19.971,19.969,12.06944154]
[1693924252238,48.77641603,19.973,19.969,12.06944154]
[1693924252450,40.96641603,19.973,19.969,12.06944154]
[1693924252751,7.81,19.973,19.969,12.06944154]
[1693924252955,79.04208637,19.979,19.969,12.06944154]
[1693924253138,7.81,19.973,19.969,12.06944154]
[1693924253337,33.044,19.973,19.969,12.06944154]
[1693924253640,1.18399008,19.972,19.969,12.06944154]
[1693924253841,7.81,19.974,19.969,12.06944154]
[1693924254050,7.81,19.973,19.969,12.06944154]
[1693924254940,7.81,19.974,19.969,12.06944154]
[1693924255347,0.88903045,19.973,19.969,12.06944154]
[1693924255656,7.81,19.973,19.969,12.06944154]
[1693924255859,7.81,19.974,19.969,12.06944154]
[1693924256750,25.23,19.976,19.964,25.244]
[1693924257051,25.228,19.978,19.966,7.813]
[1693924257356,25.228,19.978,19.969,12.06944154]
[1693924257660,7.808,19.977,19.969,12.06944154]
[1693924258136,7.808,19.977,19.969,19.88144154]
[1693924258337,7.808,19.978,19.969,19.88144154]
[1693924258541,7.808,19.978,19.969,12.06944154]
[1693924258743,20.0,19.999,19.979,12.06944154]
[1693924259055,20.0,19.987,19.979,19.87744154]
[1693924259259,27.805,19.987,19.977,7.808]
[1693924259456,27.805,19.987,19.979,12.06944154]
[1693924259759,7.805,19.987,19.979,12.06944154]
[1693924260659,107.369,19.987,19.979,12.06944154]
[1693924260859,25.31013586,19.986,19.979,12.06944154]
[1693924261154,1.2044968,19.983,19.979,12.06944154]
[1693924261357,33.029,19.982,19.979,12.06944154]
[1693924261855,88.087,19.98,19.969,12.06944154]
[1693924262047,76.43308699,19.979,19.969,12.06944154]
[1693924262244,187.724,19.976,19.969,12.06944154]
[1693924262447,55.0,19.975,19.959,37.32044154]
[1693924262660,7.81,19.972,19.969,12.06944154]
[1693924265946,54.68822053,19.982,19.969,12.06944154]
[1693924266150,54.68822053,19.982,19.973,12.06944154]
[1693924266469,9.19824853,19.981,19.973,12.06944154]
[1693924266655,7.807,19.981,19.973,12.06944154]
[1693924269963,125.72737696,19.987,19.973,12.06944154]
[1693924269964,26.16237696,19.987,19.973,12.06944154]
[1693924270147,7.804,19.989,19.986,12.06944154]
[1693924270343,7.804,19.99,19.986,12.06944154]
[1693924270647,7.804,19.99,19.98,7.807]
[1693924270648,7.801,19.996,19.989,12.06944154]
[1693924270966,7.802,19.995,19.989,12.06944154]
[1693924271150,25.203,19.998,19.989,12.06944154]
[1693924271356,7.802,19.995,19.989,12.06944154]
[1693924272160,7.802,19.994,19.989,12.06944154]
[1693924272958,7.801,19.997,19.989,12.06944154]
[1693924273165,25.2,20.0,19.998,12.06944154]
[1693924273355,25.2,20.0,19.989,12.06944154]
[1693924273356,7.8,19.999,19.989,12.06944154]
[1693924273552,7.8,19.999,19.998,12.06944154]
[1693924274161,70.21610955,20.001,19.998,12.06944154]
[1693924274162,15.21910955,20.001,19.998,12.06944154]
[1693924274455,7.799,20.001,19.998,12.06944154]
[1693924274651,32.997,20.001,19.998,12.06944154]
[1693924275262,32.997,20.001,19.999,12.06944154]
[1693924275651,78.41079162,20.007,19.999,12.06944154]
[1693924275857,63.25321284,20.007,19.999,12.06944154]
[1693924276057,7.798,20.005,19.999,12.06944154]
[1693924276263,25.189,20.009,19.999,12.06944154]
[1693924276456,27.797,20.008,19.999,12.06944154]
[1693924276852,7.797,20.008,20.007,12.06944154]
[1693924277453,7.797,20.008,19.999,12.06944154]
[1693924277769,7.797,20.008,20.007,12.06944154]
[1693924278169,25.186,20.011,19.999,12.06944154]
[1693924278366,25.186,20.011,20.009,12.06944154]
[1693924278571,39.35535535,20.012,20.009,12.06944154]
[1693924278759,7.795,20.011,20.009,12.06944154]
[1693924279574,7.795,20.011,19.999,12.06944154]
[1693924279775,55.0,20.01,19.999,12.06944154]
[1693924279972,7.797,20.008,19.999,12.06944154]
[1693924280864,7.796,20.009,20.008,12.06944154]
[1693924281065,62.796,20.009,20.008,12.06944154]
[1693924281961,55.0,20.009,20.008,12.06944154]
[1693924282162,25.185,20.012,20.008,12.06944154]
[1693924282362,62.795,20.011,20.008,12.06944154]
[1693924283373,87.981,20.011,20.008,12.06944154]
[1693924283563,62.795,20.011,20.008,12.06944154]
[1693924283962,55.0,20.011,20.008,12.06944154]
[1693924284165,62.795,20.011,20.008,12.06944154]
[1693924289666,55.0,20.011,20.008,12.06944154]
[1693924289870,55.0,20.012,20.008,12.06944154]
[1693924290060,7.794,20.015,20.008,12.06944154]
[1693924290368,26.12111225,20.017,20.008,12.06944154]
[1693924290569,26.12111225,20.017,20.008,19.86544154]
[1693924290771,7.794,20.016,20.008,12.06944154]
[1693924291870,32.973,20.016,20.008,12.06944154]
[1693924292059,7.794,20.016,20.008,12.06944154]
[1693924293074,26.12111225,20.017,20.016,12.06944154]
[1693924293381,14.8575,20.02,20.016,12.06944154]
[1693924293578,7.793,20.018,20.016,12.06944154]
[1693924293879,32.97,20.018,20.017,12.06944154]
[1693924294578,14.8575,20.02,20.017,12.06944154]
[1693924294579,32.967,20.02,20.017,12.06944154]
[1693924294876,7.792,20.02,20.017,12.06944154]
[1693924295265,7.792,20.02,20.019,12.06944154]
[1693924295977,32.966,20.02,20.019,12.06944154]
[1693924296290,87.966,20.02,20.019,12.06944154]
[1693924297682,75.47848752,20.02,20.019,12.06944154]
[1693924297880,39.00399999,20.022,20.019,12.06944154]
[1693924298179,7.791,20.022,20.019,12.06944154]
[1693924301787,55.0,20.021,20.019,12.06944154]
[1693924301977,55.0,20.023,20.019,12.06944154]
[1693924302687,14.814,20.024,20.019,12.06944154]
[1693924303999,26.10981657,20.026,20.019,12.06944154]
[1693924304283,7.79,20.024,20.019,12.06944154]
[1693924304587,7.791,20.023,20.019,12.06944154]
[1693924304785,55.0,20.022,20.019,12.06944154]
[1693924306484,7.79,20.025,20.019,12.06944154]
[1693924307082,7.789,20.026,20.016,7.793]
[1693924307284,7.79,20.026,20.019,12.06944154]
[1693924307785,62.79,20.025,20.019,12.06944154]
[1693924308189,62.79,20.025,20.014,7.794]
[1693924308377,62.79,20.025,20.019,12.06944154]
[1693924308871,7.791,20.023,20.019,12.06944154]
[1693924309073,55.0,20.022,20.019,12.06944154]
[1693924309276,7.79,20.024,20.019,12.06944154]
[1693924309483,7.79,20.025,20.019,12.06944154]
[1693924311077,7.79,20.025,20.014,7.794]
[1693924311499,7.79,20.025,20.019,12.06944154]
[1693924311689,55.0,20.024,20.019,12.06944154]
[1693924311893,65.01999999,20.026,20.019,12.06944154]
[1693924311894,47.64099999,20.026,20.019,12.06944154]
[1693924312082,7.79,20.024,20.019,12.06944154]
[1693924312278,7.79,20.025,20.019,12.06944154]
[1693924312796,40.652,20.03,20.019,12.06944154]
[1693924312998,7.788,20.03,20.029,12.06944154]
[1693924313893,24.10563906,20.039,20.029,12.06944154]
[1693924313894,1.4264142,20.039,20.029,12.06944154]
[1693924314080,7.785,20.037,20.027,7.789]
[1693924314397,7.785,20.037,20.021,99.394]
[1693924314398,7.785,20.037,20.029,12.06944154]
[1693924314991,32.938,20.037,20.029,12.06944154]
[1693924315286,50.57,20.05,20.039,12.06944154]
[1693924315489,7.782,20.045,20.039,12.06944154]
[1693924315691,25.14,20.048,20.035,7.786]
[1693924315899,7.782,20.044,20.035,7.786]
[1693924316281,7.782,20.046,20.044,12.06944154]
[1693924316497,7.781,20.048,20.044,12.06944154]
[1693924316685,7.781,20.048,20.035,109.769]
[1693924316686,7.781,20.048,20.047,12.06944154]
[1693924316886,62.649,20.048,20.047,12.06944154]
[1693924317088,62.649,20.048,20.039,12.06944154]
[1693924317288,7.776,20.06,20.059,12.06944154]
[1693924318081,7.776,20.06,20.044,54.876]
[1693924318082,7.776,20.06,20.049,12.06944154]
[1693924318488,58.346,20.06,20.049,12.06944154]
[1693924318696,20.0,20.059,20.049,12.06944154]
[1693924318995,186.975,20.056,20.049,12.06944154]
[1693924319199,186.975,20.056,20.039,12.06944154]
[1693924319602,55.0,20.055,20.039,12.06944154]
[1693924319902,32.916,20.051,20.049,12.06944154]
[1693924320192,7.78,20.05,20.049,12.06944154]
[1693924320393,54.849,20.055,20.049,12.06944154]
[1693924320591,7.78,20.051,20.049,12.06944154]
[1693924320786,32.915,20.051,20.049,12.06944154]
[1693924321200,7.78,20.051,20.049,12.06944154]
[1693924321492,79.973,20.057,20.049,12.06944154]
[1693924321703,7.779,20.053,20.049,12.06944154]
[1693924321902,465.25203711,20.079,20.049,250.0]
[1693924322098,32.913,20.052,20.049,250.0]
[1693924322494,7.779,20.054,20.049,250.0]
[1693924323891,25.127,20.058,20.049,250.0]
[1693924324083,7.778,20.056,20.049,250.0]
[1693924324397,101.14,20.07,20.049,250.0]
[1693924324700,7.775,20.062,20.049,257.78]
[1693924324900,20.0,20.061,20.05,92.8135]
[1693924325210,164.89067065,20.07,20.051,55.0]
[1693924325211,54.816,20.068,20.051,55.0]
[1693924325387,25.116,20.067,20.059,250.0]
[1693924325589,153.65001196,20.07,20.059,32.901]
[1693924325590,39.32934131,20.07,20.059,32.901]
[1693924325895,7.772,20.072,20.06,250.0]
[1693924326101,7.772,20.072,20.07,250.0]
[1693924326797,87.683,20.072,20.07,250.0]
[1693924327000,32.881,20.072,20.07,250.0]
[1693924328097,32.881,20.072,20.061,92.8135]
[1693924328404,32.881,20.072,20.07,250.0]
[1693924328601,7.771,20.073,20.07,250.0]
[1693924328783,99.099,20.081,20.07,250.0]
[1693924328982,7.77,20.077,20.07,250.0]
[1693924329411,7.769,20.079,20.07,250.0]
[1693924329592,20.0,20.078,20.07,250.0]
[1693924329911,27.769,20.078,20.07,250.0]
[1693924330402,25.096,20.083,20.07,250.0]
[1693924330898,39.13060817,20.084,20.071,55.0]
[1693924331096,32.861,20.084,20.07,257.772]
[1693924331291,32.861,20.084,20.07,250.0]
[1693924331491,32.861,20.084,20.08,250.0]
[1693924332202,20.861,20.084,20.08,250.0]
[1693924332415,28.628,20.084,20.08,250.0]
[1693924335506,28.628,20.084,20.071,95.6747]
[1693924335700,109.773,20.083,20.08,250.0]
[1693924335901,25.098,20.081,20.08,250.0]
[1693924336089,32.866,20.081,20.08,250.0]
[1693924336296,7.768,20.081,20.08,250.0]
[1693924337200,7.768,20.081,20.07,250.0]
[1693924337504,7.768,20.081,20.08,250.0]
[1693924337695,7.768,20.081,20.07,257.772]
[1693924337696,62.768,20.081,20.07,257.772]
[1693924337903,62.768,20.081,20.08,250.0]
[1693924338210,62.768,20.081,20.068,103.0195]
[1693924338211,86.2020963,20.081,20.06,250.0]
[1693924338409,138.7140894,20.08,20.06,250.0]
[1693924338616,50.29,20.07,20.06,145.18322878]
[1693924338905,32.888,20.067,20.056,98.6808]
[1693924339094,54.815,20.068,20.056,98.6808]
[1693924339095,7.775,20.065,20.06,145.18322878]